Cogmind - Beta 13 @@@ ROGUE MODE // 2024.03.31 @ 21:01:03 Player: Skarma Result: Destroyed by H-55 Commando with Gauss Rifle Performance ------------- Evolutions (2) 1000 Regions Visited (5) 1000 Robots Destroyed (74) 370 Value Destroyed (2074) 2074 Prototype IDs (3) 60 Alien Tech Used (0) 0 Bonus (-382) -382 TOTAL SCORE: 4122 Bonus ------- High Alert Combat Kills 106 Friendly Fire -488 Cogmind --------- Core Integrity 0/550 Matter 7/300 Energy 265/265 System Corruption 0% Temperature Cool (0) Movement Core (2800) Ox55 Location -8/Materials Parts ------- > --- POWER (2) -------- Improved Ion Engine > --- PROPULSION (3) --- (None) > --- UTILITY (3) ------ Large Storage Unit Cargo Storage Unit > --- WEAPON (3) ------- (None) > --- INVENTORY (30) --- Sensor Array Signal Interpreter Shield Generator Datajack Peak State ------------ > --- POWER ------------ Heavy Ion Engine > --- PROPULSION ------- Wheel Wheel > --- UTILITY ---------- Large Storage Unit High-capacity Matter Pod Shield Generator > --- WEAPON ----------- Ion Burst Cannon Heavy Assault Rifle Heavy Assault Rifle > --- INVENTORY -------- Improved Ion Engine Improved Ion Engine Light Treads Heat Sink Heat Sink Sensor Array Signal Interpreter Terrain Scanner Small Laser Particle Gun Spread Laser Spread Laser Datajack [Rating: 20] Favorites ----------- Power Ion Engine Engine Ion Engine Propulsion Aluminum Leg Treads Light Treads Leg Aluminum Leg Wheel Wheel Hover Unit Hover Unit Utility Large Storage Unit Device Heat Sink Storage Large Storage Unit Processor Visual Processing Unit Protection Core Shielding Weapon Heavy Assault Rifle Energy Gun Medium Laser Energy Cannon Ion Burst Cannon Ballistic Gun Heavy Assault Rifle Launcher Grenade Launcher Special Melee Weapon Datajack Build | -11 -10 -10 -9 -9 -8 ------- Run | Yrd Mat Min Mat Sto Mat Slots Evolved 4 | . . . 2 . 2 Power 1 | . . . . . 1 Propulsion 1 | . . . . . 1 Utility 1 | . . . 1 . . Weapon 1 | . . . 1 . . Parts Attached 71 | 6 7 21 10 18 9 Power 9 | 1 1 1 1 2 3 Engine 9 | 1 1 1 1 2 3 Core . | . . . . . . Reactor . | . . . . . . Propulsion 15 | 2 . 8 . 5 . Treads 4 | . . 2 . 2 . Leg 7 | 2 . 5 . . . Wheel 3 | . . . . 3 . Hover 1 | . . 1 . . . Flight . | . . . . . . Utility 12 | 1 2 1 4 3 1 Device 7 | 1 1 . 3 2 . Storage 3 | . 1 1 . . 1 Processor 1 | . . . 1 . . Hackware . | . . . . . . Protection 1 | . . . . 1 . Artifact . | . . . . . . Weapon 35 | 2 4 11 5 8 5 Energy Gun 14 | 1 2 3 3 3 2 Energy Cannon 2 | . . . . 1 1 Ballistic Gun 10 | 1 . 4 2 2 1 Ballistic Cannon . | . . . . . . Launcher 8 | . 1 4 . 2 1 Special Weapon . | . . . . . . Impact Weapon . | . . . . . . Slashing Weapon . | . . . . . . Piercing Weapon . | . . . . . . Special Melee Weapon 1 | . 1 . . . . Unidentified Prototypes 3 | . . . 1 2 . Parts Lost 27 | . . 3 3 8 13 Power 5 | . . 1 . 2 2 Propulsion 7 | . . . 1 4 2 Utility 3 | . . . 1 . 2 Weapon 12 | . . 2 1 2 7 Highest Loss Streak 9 | . . 1 2 2 9 To Critical Strikes 1 | . . . . . 1 Average Slot Usage (%) 93 | . 97 96 90 96 46 Engine 11 | . 14 12 9 10 7 Treads 3 | . . 2 . 6 6 Leg 15 | . 28 25 18 . . Wheel 4 | . . . . 13 . Device 7 | . 13 4 10 9 . Storage 20 | . 12 23 22 22 14 Energy Gun 12 | . 16 11 18 9 8 Energy Cannon 1 | . . . . 4 . Ballistic Gun 7 | . . 3 9 14 1 Launcher 6 | . 3 10 1 3 5 Special Melee Weapon 1 | . 8 . . . . Naked Turns . | . . . . . . Heaviest Build 170 | 7 31 35 42 48 170 Greatest Support 40 | 20 20 40 20 40 40 Greatest Overweight (x) 56 | . 1 1 4 13 56 Average Overweight (x) 1 | . . . 1 1 3 Largest Inventory Capacity 30 | 5 15 15 15 15 30 Average Capacity 14 | 5 13 15 15 15 17 Most Carried 15 | 4 11 14 12 15 13 Average Carried 9 | 2 4 9 9 12 9 Final Capacity 30 | 5 15 15 15 15 30 Final Carried 12 | 3 10 10 12 12 4 Class Distribution -------------------- 63% | Mutant 20% | Tank 9% | Scavenger-Gunner 5% | Gunner Dominant Class ---------------- Mutant | -10/Materials Mutant | -10/Mines Scavenger-Gunner | -9/Materials Tank | -9/Storage Mutant | -8/Materials Resources | -11 -10 -10 -9 -9 -8 ----------- Run | Yrd Mat Min Mat Sto Mat Matter Collected 1702 | 255 78 505 141 703 20 Remotely . | . . . . . . Salvage Created 1910 | 41 28 423 127 1131 160 Parts 131 | 3 4 29 8 73 14 Haulers Intercepted 1 | . . . . 1 . Recyclers Shooed 3 | . . 1 . 2 . Parts Field Recycled . | . . . . . . Retrieved Matter . | . . . . . . Parts Self-Destructed . | . . . . . . Prevented . | . . . . . . Kills | -11 -10 -10 -9 -9 -8 ------- Run | Yrd Mat Min Mat Sto Mat Combat Hostiles Destroyed 51 | 1 1 14 4 26 5 Guns 21 | 1 . 6 4 8 2 Cannons 11 | . . . . 11 . AOE 19 | . 1 8 . 7 3 Classes Destroyed 13 | 1 1 5 1 5 . Worker 5 | . . 1 . 4 . Builder 3 | . . 1 . 2 . Tunneler 1 | . . 1 . . . Hauler 1 | . . . . 1 . Recycler 3 | . . 1 . 2 . Mechanic 2 | . . . . 2 . Operator 2 | . . . . 1 1 Watcher 4 | . 1 . . 2 1 Swarmer 9 | . . 6 1 2 . Grunt 25 | 1 1 8 1 12 2 Brawler 1 | . . . . 1 . Duelist 2 | . . . . 2 . Sentry 14 | . . . 2 9 3 Thug 2 | . . 2 . . . Best Kill Streak 5 | 1 1 5 2 5 3 Combat Bots Only 4 | 1 1 4 2 3 3 Max Kills in Single Turn 3 | 1 1 2 2 3 1 Gunslinging 1 | . . . 1 1 . Exploded 2 | . 1 2 . 1 1 Melee . | . . . . . . Uniques/NPCs Destroyed . | . . . . . . Combat | -11 -10 -10 -9 -9 -8 -------- Run | Yrd Mat Min Mat Sto Mat Hostile Shots Fired 420 | 11 5 67 34 177 126 Missed 132 | 6 2 22 9 56 37 Damage Taken 3881 | 53 35 633 320 1405 1435 Core 978 | 22 10 104 29 259 554 Absorbed by Shields 246 | . . . . 246 . Redirected to Shielding 39 | . . . . 19 20 Regen/Repaired (Parts) 16 | . 16 . . . . Core Remaining (%) 54 | 91 . 45 . 28 . Volleys Fired 165 | 5 13 46 10 67 24 Largest 3 | 2 2 2 3 3 3 Hottest 160 | 70 80 90 141 160 129 Shots Fired 359 | 9 20 72 26 186 46 Gun 248 | 9 13 51 24 124 27 Cannon 34 | . . . . 34 . Launcher 77 | . 7 21 2 28 19 Special . | . . . . . . Kinetic 103 | 5 . 14 10 73 1 Thermal 156 | 4 13 14 14 85 26 Explosive 77 | . 7 21 2 28 19 Electromagnetic 23 | . . 23 . . . Robot Hit Streak 14 | 3 . 12 9 14 5 Robot Miss Streak 11 | 1 4 6 3 11 6 Penetration Max . | . . . . . . Secondary Targets 3 | . . . 1 1 1 Max Gunslinging Chain 1 | . . . 1 1 1 Shots Hit Robots 165 | 5 4 33 13 88 22 Core Hits 139 | 2 2 35 9 76 15 Critical Kills . | . . . . . . Critical Parts Destroyed 1 | . . . . 1 . Critical Strikes 2 | . . . 1 1 . Burn 1 | . . . 1 . . Destroy 1 | . . . . 1 . Melee Attacks 6 | . 6 . . . . Impact . | . . . . . . Slashing . | . . . . . . Piercing . | . . . . . . Sneak Attacks 4 | . 4 . . . . Combat Hostiles . | . . . . . . Follow-up Attacks . | . . . . . . Damage Inflicted 5803 | 56 179 1374 207 3153 834 Guns 1684 | 56 . 351 163 919 195 Cannons 651 | . . . . 651 . Explosions 3453 | . 179 1018 44 1573 639 Melee . | . . . . . . Ramming 15 | . . 5 . 10 . Kinetic 701 | 19 . 137 44 484 17 Thermal 1578 | 37 . 158 119 1086 178 Explosive 3357 | . 179 922 44 1573 639 Electromagnetic 152 | . . 152 . . . Impact . | . . . . . . Slashing . | . . . . . . Piercing . | . . . . . . Highest Corruption . | . . . . . . Average Corruption . | . . . . . . Corruption Purged . | . . . . . . Corruption Blocked . | . . . . . . Overload Shots . | . . . . . . Overflow Damage 144 | . 6 42 . 45 51 Projectiles 2 | . . . . 2 . Explosions 142 | . 6 42 . 43 51 Melee . | . . . . . . Knockbacks . | . . . . . . Impact . | . . . . . . Kinetic . | . . . . . . Secondary . | . . . . . . Self-Inflicted Damage 346 | . 4 142 . 126 74 Shots 14 | . 1 6 . 4 3 Rammed 1 | . . . . 1 . Targets Rammed 2 | . . 1 . 1 . Kicked 1 | . . 1 . . . Crushed . | . . . . . . Highest Temperature 389 | 52 2 108 144 389 113 Average Temperature 109 | 23 2 21 71 148 40 Received Heat Transfer 1149 | 30 18 225 138 396 342 Effects 5 | . . . . 5 . Shutdowns 2 | . . . . 2 . Energy Bleed 1 | . . . . 1 . Matter Decay 1 | . . . . 1 . Damage (minor) 1 | . . . . 1 . Siege Activations . | . . . . . . Robots Corrupted . | . . . . . . Combat Hostiles . | . . . . . . Parts Fried . | . . . . . . Impact Corruptions . | . . . . . . Robots Melted . | . . . . . . Combat Hostiles . | . . . . . . Parts Melted 3 | . . . 1 2 . Heat Transferred 2724 | 111 . 285 370 1600 358 Parts Sabotaged . | . . . . . . Parts Stolen . | . . . . . . Parts Stripped . | . . . . . . Power Chain Reactions 1 | . . 1 . . . Alert | -11 -10 -10 -9 -9 -8 ------- Run | Yrd Mat Min Mat Sto Mat Peak Influence 691 | 20 71 345 215 691 465 Initial 291 | . 13 27 77 90 291 Average 179 | 5 25 205 165 228 388 Maximum Alert Level 2 | . . 1 1 2 2 Low Security (%) 67 | 100 100 64 67 59 . Level 1 26 | . . 35 32 26 62 Level 2 6 | . . . . 13 37 Level 3 . | . . . . . . Level 4 . | . . . . . . Level 5 . | . . . . . . High Security . | . . . . . . Max Security . | . . . . . . Squads Dispatched 10 | . 1 . 1 6 2 Investigation 1 | . . . . 1 . Extermination . | . . . . . . Reinforcement 6 | . 1 . 1 2 2 Assault . | . . . . . . Garrison 3 | . . . . 3 . Intercept . | . . . . . . Searches Triggered . | . . . . . . Construction Impeded 1 | . . . . . 1 Haulers Reinforced . | . . . . . . Active Scanning Responses . | . . . . . . Cargo Convoy Interrupts . | . . . . . . Stealth | -11 -10 -10 -9 -9 -8 --------- Run | Yrd Mat Min Mat Sto Mat Distress Signals 6 | . . 2 1 2 1 Communications Jammed . | . . . . . . Distress Signals . | . . . . . . Times Spotted 80 | 1 9 14 8 37 11 Peak Tracking Total 5 | 1 2 3 4 4 5 Tactical Retreats 1 | . . . 1 . . Traps | -11 -10 -10 -9 -9 -8 ------- Run | Yrd Mat Min Mat Sto Mat Traps Triggered 1 | . . . . 1 . Indirectly . | . . . . . . Trap Hack Attempts . | . . . . . . Triggered . | . . . . . . Disarmed . | . . . . . . Reprogrammed . | . . . . . . Reused . | . . . . . . Traps Extracted . | . . . . . . Installed . | . . . . . . Triggered . | . . . . . . Machines | -11 -10 -10 -9 -9 -8 ---------- Run | Yrd Mat Min Mat Sto Mat Machines Disabled 18 | . 1 10 1 4 2 Max in Single Turn 8 | . 1 8 1 1 1 Machines Repaired . | . . . . . . Machines Dismantled . | . . . . . . Machines Sabotaged . | . . . . . . Overloaded Fab Kills . | . . . . . . Hacking | -11 -10 -10 -9 -9 -8 --------- Run | Yrd Mat Min Mat Sto Mat Machines Accessed 8 | . 3 1 . 4 . Terminals 3 | . . . . 3 . Fabricators . | . . . . . . Repair Stations 1 | . 1 . . . . Recycling Units 3 | . 2 . . 1 . Scanalyzers . | . . . . . . Garrison Access . | . . . . . . Total Hacks 16 | . 7 1 . 8 . Successful 7 | . 3 1 . 3 . Failed 9 | . 4 . . 5 . Catastrophic 1 | . . . . 1 . Database Lockouts . | . . . . . . Manual 3 | . 2 . . 1 . Terminals 7 | . . . . 7 . Fabricators . | . . . . . . Repair Stations 4 | . 4 . . . . Recycling Units 4 | . 3 . . 1 . Scanalyzers . | . . . . . . Garrison Access . | . . . . . . Terminal Hacks 3 | . . 1 . 2 . Record 1 | . . . . 1 . Open Door 2 | . . 1 . 1 . Fabricator Hacks . | . . . . . . Repair Station Hacks 2 | . 2 . . . . Scan Component 1 | . 1 . . . . Repair 1 | . 1 . . . . Recycling Unit Hacks 2 | . 1 . . 1 . Recycle Component 1 | . 1 . . . . Report Inventory 1 | . . . . 1 . Scanalyzer . | . . . . . . Garrison Access Hacks . | . . . . . . Unauthorized Hacks . | . . . . . . Terminals . | . . . . . . Fabricators . | . . . . . . Repair Stations . | . . . . . . Recycling Units . | . . . . . . Scanalyzers . | . . . . . . Garrison Access . | . . . . . . Data Cores Recovered 1 | . . . . . 1 Used . | . . . . . . Hacking Detections 6 | . 3 . . 3 . Full Trace Events 2 | . 1 . . 1 . Feedback Events . | . . . . . . Feedback Blocked . | . . . . . . Robot Schematics Acquired . | . . . . . . Robots Built . | . . . . . . Authchips . | . . . . . . Time . | . . . . . . Total Robot Build Rating . | . . . . . . Part Schematics Acquired . | . . . . . . Parts Built . | . . . . . . Authchips . | . . . . . . Time . | . . . . . . Total Part Build Rating . | . . . . . . Parts Repaired 1 | . 1 . . . . Time 26 | . 26 . . . . Parts Recycled 1 | . 1 . . . . Recycled Matter . | . . . . . . Retrieved Matter . | . . . . . . Retrieved Components . | . . . . . . Parts Scanalyzed . | . . . . . . Part Schematics Acquired . | . . . . . . Parts Damaged . | . . . . . . Bothacking | -11 -10 -10 -9 -9 -8 ------------ Run | Yrd Mat Min Mat Sto Mat Used RIF Installer . | . . . . . . Robots Hacked 3 | . 3 . . . . Non-combat 3 | . 3 . . . . Combat . | . . . . . . Robot Hacks Applied 3 | . 3 . . . . parse_system 1 | . 1 . . . . no_distress 2 | . 2 . . . . Relay Couplers Released . | . . . . . . Fabnet Peak Effective % . | . . . . . . Robots Rewired . | . . . . . . Allies Hacked . | . . . . . . Hacks Repelled . | . . . . . . Allies | -11 -10 -10 -9 -9 -8 -------- Run | Yrd Mat Min Mat Sto Mat Total Allies . | . . . . . . Largest Group . | . . . . . . Highest-Rated Group . | . . . . . . Highest-Rated Ally . | . . . . . . Total Orders . | . . . . . . Ally Attacks . | . . . . . . Total Damage . | . . . . . . Kills . | . . . . . . Allies Corrupted . | . . . . . . Allies Melted . | . . . . . . Intel | -11 -10 -10 -9 -9 -8 ------- Run | Yrd Mat Min Mat Sto Mat Robot Analysis Total . | . . . . . . Derelict Logs Recovered 1 | . . 1 . . . Drone Launches . | . . . . . . Drone Recoveries . | . . . . . . Exploration | -11 -10 -10 -9 -9 -8 ------------- Run | Yrd Mat Min Mat Sto Mat Turns Passed 3249 | 160 539 1020 308 1044 178 Spaces Moved 1510 | 117 267 407 112 572 35 Core 38 | 27 . . . 1 10 Treads 180 | . . 43 . 112 25 Legs 848 | 90 267 364 112 15 . Wheels 444 | . . . . 444 . Hover . | . . . . . . Flight . | . . . . . . Fastest Speed 50 | 50 120 160 190 95 160 Average Speed 164 | 103 179 186 233 131 308 Slowest Speed 2850 | 120 190 190 400 700 2850 Overloaded Moves . | . . . . . . Propulsion Burnouts . | . . . . . . Robots Hopped . | . . . . . . Cave-ins Triggered . | . . . . . . Exploration Rate (%) 30 | 10 30 62 7 63 9 Regions Visited 5 Branch Regions 2 Pre-discovered Areas . | . . . . . . Known Exits Taken . | . . . . . . Unknown Exits Taken 5 | 1 1 1 1 1 . Scrap Searched 1 | . . 1 . . . Spaces Dug 14 | . 3 . 7 . 4 Terrain Destroyed 463 | . 20 117 11 207 108 Melee . | . . . . . . Projectile 8 | . . . . 8 . AOE 455 | . 20 117 11 199 108 Terrain Rammed . | . . . . . . Walls Destroyed . | . . . . . . Machines Disabled . | . . . . . . Actions | -11 -10 -10 -9 -9 -8 --------- Run | Yrd Mat Min Mat Sto Mat Total 1972 | 148 306 602 140 706 70 Wait 103 | 8 . 90 . 5 . Move 1505 | 116 266 406 111 571 35 Hop . | . . . . . . Pick Up 71 | 11 10 16 8 25 1 Fast Attach . | . . . . . . Attach 50 | 6 6 14 6 9 9 Detach 15 | . 4 8 1 1 1 Swap 21 | . 1 7 4 9 . Drop 34 | 2 . 14 . 18 . Fire 165 | 5 13 46 10 67 24 Melee 6 | . 6 . . . . Ram 1 | . . . . 1 . Kick 1 | . . 1 . . . Crush . | . . . . . . Escape Stasis . | . . . . . . Rewire . | . . . . . . Trap . | . . . . . . Miscellaneous . | . . . . . . Route ------- -11/Scrapyard -10/Materials -10/Mines -9/Materials (discovered 2 exits: Min / *Sto) -9/Storage -8/Materials History --------- Turn | Location | Event 2 | -11/Scrapyard | Met Revision 17 95 | -11/Scrapyard | Discovered new exit (range 8) 161 | -11/Scrapyard | Entered Materials 303 | -10/Materials | Build established: Mutant 577 | -10/Materials | Repaired Heat Sink 676 | -10/Materials | Discovered new exit (range 8) 700 | -10/Materials | Entered Mines 1000 | -10/Mines | Found a hidden stash of uninstalled traps 1070 | -10/Mines | Joined a pair of Derelicts in attacking an 0b10 outpost 1326 | -10/Mines | Excavation squad dispatched 1326 | -10/Mines | A large section of the Mines collapsed 1481 | -10/Mines | Core integrity fell below 50% 1576 | -10/Mines | Excavation squad dispatched 1661 | -10/Mines | Discovered new exit (range 7) 1694 | -10/Mines | Found the Drone Emporium 1720 | -10/Mines | Entered Materials 1720 | -9/Materials | Evolved 2 slots: Utility x1, Weapon x1 1721 | -9/Materials | Identified exit to Mines 1898 | -9/Materials | Discovered new exit (range 13) 2028 | -9/Materials | Entered Storage 2537 | -9/Storage | Garrison activated, responded to threat 2615 | -9/Storage | Build established: Tank 2846 | -9/Storage | Core integrity fell below 50% 3025 | -9/Storage | Discovered new exit (range 11) 3072 | -9/Storage | Entered Materials 3072 | -8/Materials | Evolved 2 slots: Power x1, Propulsion x1 3177 | -8/Materials | Core integrity fell below 50% 3193 | -8/Materials | Lost 9 parts (2p2n2u3w) 3215 | -8/Materials | Core integrity fell below 20% 3250 | -8/Materials | Destroyed by H-55 Commando with Gauss Rifle Last Messages --------------- R-06 Scavenger collects Aluminum Leg. Penetrated by Slug. K-01 Serf collects debris. R-06 Scavenger collects Particle Gun. The unstable cave ceiling collapses. K-01 Serf collects debris. Knocked back. K-01 Serf collects debris. R-06 Scavenger collects Aluminum Leg. K-01 Serf collects debris. Critical hit (Destroy). Imp. Assault Rifle destroyed. R-06 Scavenger collects Aluminum Leg. Knocked back. Slug penetrates Wall. K-01 Serf collects debris. Penetrated by Slug. K-01 Serf collects debris. Penetrated by Slug. [Achievement: First Step to Greatness] Map ----- +----------------------------------------------------+ | ?????????????????????????????????????????????????? | | ?????????????????????????????????????????????????? | | ?????????????????????????????????????????????????? | | ?????????????????????????????????????????????????? | | ?????????????????????????????????????????????????? | | ?????????????????????????????????????????????????? | | ?????????????????????????????????????????????????? | | ?????????????????????????????? ??????????????? | | ?????????????????????????????# #?????????????? | | ????????????????????????????## ###???????????? | | ??????????????????????????? # ##??????????? | | ???????????????????????? "" ??????????? | | ?????????????????????????""S % ??????????? | | ?????????????????????????"" % ?????????? | | ????????????????????????? k h ?????????? | | ????????????????????????? # # ????????? | | ????????????????????###### ????????? | | ????????????????????# T [%! ?????????? | | ????????????????????# ! ???????????? | | ????????????????????# h #?????????????? | | ???????????????????## k #?????????????? | | ???????????????????# ! #?????????????? | | ???????????????????# #?????????????? | | ???????????????????# # #?????????????? | | ???????????????????## b #?????????????? | | ????????????????????# @ ##?????????????? | | ????????????????????## ### # ## #??????????????? | | ???????????????????? # ##?????????????? | | ??????????????????# """ """ # #?????????????? | | ??????????????????# """"""""" ##?????????????? | | ??????????????????# """"" k ##????????????? | | ??????????????????# k# = # ### ####?????? | | ??????????????????# ! +?????? | | ??????????????????# ### ## #?????? | | ??????????????????###+######### # #?????? | | ????????????????????# % # #?????? | | ????????????????????# ????? | | ????????????????????+ # ????? | | ????????????????????########+## ????? | | ??????????????????????????????# ?????? | | ??????????????????????????????##### ?????? | | ???????????????????????????????????# #####+??????? | | ????????????????????????????????????# ???????????? | | ?????????????????????????????????????!???????????? | | ?????????????????????????????????????? ??????????? | | ?????????????????????????????????????????????????? | | ?????????????????????????????????????????????????? | | ?????????????????????????????????????????????????? | | ?????????????????????????????????????????????????? | | ?????????????????????????????????????????????????? | +----------------------------------------------------+ Best States ------------- Heat Dissipation 38 Energy Generation 19 Energy Capacity 305 Matter Stores 500 Matter Capacity 500 Sight Range 16 Terrain Scan Range 16 Terrain Scan Density 10 Core Shielding 20 Evasion (%) 55 Recoil Reduction 2 Item Schematics ----------------- None Robot Schematics ------------------ None Fabricated ------------ Nothing Alien Tech Used ----------------- None Achievements -------------- Backstab Crack Shot First Step to Greatness Loot Pinata One Hack Too Far Oops Part-time Mechanic Remodeling Risk Taker Storm Trooper Tank Troublemaker Uninvited Guest Challenges ------------ None Game ------ Seed FactoryCargoCannon Manual? 0 Play Time 00:59:14 Cumulative 0.9 hours Start 2024.03.31 @ 20:00:54 End 2024.03.31 @ 21:01:03 Sessions 1 Manual Loads 0 Difficulty Rogue Special Mode None Game No. 1 Rogue 1 Adventurer 0 Explorer 0 Win Type - Total 0 Types 0/0/0/0/0/0/0/0/0 Lore% 0 Gallery% 3 Achievement% 5 Wizard Run 0 Options --------- Layout 1 ASCII 0 Keyboard 0 Movement Arrows Keybinds 0 Fullscreen 2 Font 24/Smallcaps Map View 50x35 Zoom Use 0% Tactical HUD 0 Map Filters NONE Filters NONE Steam 1 RUN: 69ceedf9-5004-4513-b17f-5cc1649eacb5